bitfinex/quotes_SOLUSD_20240620
["timestamp","ask_amount","ask_price","bid_price","bid_amount"]
[1718886704290,0.17,139.13,139.06,15.6347]
[1718886704490,0.51,139.13,139.06,15.6347]
[1718886704688,7.3576,139.13,139.06,15.6347]
[1718886704891,20.0,139.12,139.06,15.6347]
[1718886705077,7.1885,139.11,139.06,15.6347]
[1718886705387,0.17,139.15,139.06,15.6347]
[1718886705775,0.34,139.15,139.06,15.6347]
[1718886705975,7.5268,139.15,139.06,15.6347]
[1718886706187,27.1871,139.14,139.06,15.6347]
[1718886706388,7.1871,139.14,139.06,15.6347]
[1718886706567,0.17,139.15,139.07,0.34]
[1718886706769,7.1847,139.19,139.07,0.34]
[1718886707109,20.0,139.18,139.09,0.17]
[1718886707388,14.65967331,139.23,139.11,0.17]
[1718886707693,52.1038,139.3,139.11,0.17]
[1718886707694,17.9492,139.29,139.13,0.17]
[1718886707897,17.9492,139.29,139.13,20.68]
[1718886708103,17.9492,139.29,139.14,30.34]
[1718886708269,17.9492,139.29,139.15,0.17]
[1718886708270,7.1809,139.26,139.15,0.17]
[1718886708473,7.1809,139.26,139.15,20.68]
[1718886708672,7.1804,139.27,139.15,20.68]
[1718886708890,7.1798,139.28,139.17,0.17]
[1718886709098,42.0988,139.34,139.17,20.51]
[1718886709281,35.8946,139.3,139.17,20.51]
[1718886709485,7.1807,139.27,139.17,20.34]
[1718886709677,17.9463,139.31,139.19,0.17]
[1718886709871,7.182,139.24,139.17,0.17]
[1718886710091,7.47273887,139.3,139.17,0.17]
[1718886710300,45.17,139.29,139.17,0.17]
[1718886710599,7.47273887,139.3,139.18,0.17]
[1718886710771,7.1801,139.28,139.18,0.34]
[1718886710977,7.1801,139.28,139.2,0.17]
[1718886711191,7.1801,139.28,139.2,0.34]
[1718886711400,7.47273887,139.3,139.23,0.17]
[1718886711576,6.6005,139.39,139.23,0.17]
[1718886711577,7.1775,139.33,139.25,0.17]
[1718886712075,25.41986526,139.37,139.25,0.51]
[1718886712076,7.1777,139.32,139.25,0.51]
[1718886712377,7.1778,139.32,139.25,0.34]
[1718886712574,7.1778,139.32,139.25,0.17]
[1718886712991,7.48106526,139.37,139.25,0.17]
[1718886713189,7.48106526,139.37,139.25,20.68]
[1718886713386,7.1754,139.37,139.25,20.68]
[1718886713701,7.48260992,139.4,139.25,20.68]
[1718886714002,7.176,139.36,139.25,20.68]
[1718886714181,17.9355,139.39,139.25,20.68]
[1718886714576,7.1751,139.37,139.25,20.68]
[1718886714775,7.48957993,139.41,139.25,20.68]
[1718886714982,17.9341,139.4,139.25,20.68]
[1718886715294,7.1771,139.34,139.25,20.68]
[1718886715477,25.42337993,139.41,139.25,20.68]
[1718886715678,7.48957993,139.41,139.25,20.68]
[1718886715881,7.1747,139.38,139.25,20.68]
[1718886716091,7.1742,139.39,139.25,20.68]
[1718886716301,20.0,139.4,139.29,0.17]
[1718886716598,14.66297993,139.41,139.29,20.68]
[1718886716599,7.1734,139.41,139.29,20.68]
[1718886716993,7.1736,139.4,139.29,20.68]
[1718886717503,7.1732,139.41,139.29,20.68]
[1718886717714,7.1726,139.42,139.29,20.68]
[1718886717881,17.9261,139.47,139.32,6.0655]
[1718886718077,7.48502445,139.47,139.33,20.68]
[1718886718300,7.1727,139.42,139.33,20.68]
[1718886718519,7.1716,139.44,139.33,20.68]
[1718886718695,7.48502445,139.47,139.33,20.68]
[1718886718898,7.1725,139.42,139.33,20.68]
[1718886719100,7.48502445,139.47,139.33,20.68]
[1718886719887,7.1719,139.44,139.33,20.68]
[1718886720091,7.1716,139.44,139.33,20.68]
[1718886720288,25.41032445,139.47,139.33,20.68]
[1718886720289,7.1706,139.46,139.34,15.1136]
[1718886720481,7.48502445,139.47,139.35,20.51]
[1718886720683,17.9199,139.51,139.37,0.17]
[1718886720885,35.8449,139.49,139.37,20.51]
[1718886721090,7.49024485,139.52,139.37,20.51]
[1718886721285,7.49024485,139.52,139.38,0.17]
[1718886721484,7.49024485,139.52,139.39,0.17]
[1718886721695,7.49024485,139.52,139.39,0.51]
[1718886721696,7.17,139.47,139.39,0.51]
[1718886721914,7.49024485,139.52,139.39,0.51]
[1718886722143,7.49024485,139.52,139.4,0.17]
[1718886722303,7.49024485,139.52,139.42,0.17]
[1718886722601,17.9092,139.6,139.44,0.17]
[1718886722782,7.1662,139.55,139.44,0.17]
[1718886722978,7.1673,139.53,139.44,20.68]
[1718886723182,22.1794898,139.61,139.44,20.68]
[1718886723405,7.48467695,139.58,139.44,20.68]
[1718886723719,6.3864,139.63,139.44,20.68]
[1718886723720,17.9139,139.56,139.44,20.68]
[1718886723905,35.817,139.6,139.44,20.68]
[1718886723906,17.9131,139.57,139.44,20.68]
[1718886724220,7.1673,139.53,139.44,20.68]
[1718886724509,7.1674,139.52,139.44,20.68]
[1718886724709,0.17,139.54,139.43,6.0425]
[1718886724912,0.17,139.53,139.43,6.0425]
[1718886725211,7.1684,139.5,139.43,6.0425]
[1718886725515,14.65415686,139.57,139.43,6.0425]
[1718886725716,7.48915686,139.57,139.44,50.34]
[1718886725890,7.1637,139.6,139.45,15.0288]
[1718886726091,17.9024,139.65,139.46,20.34]
[1718886726289,7.49104219,139.62,139.48,30.51]
[1718886726507,24.348,139.68,139.51,15.0288]
[1718886726711,35.7975,139.68,139.52,20.51]
[1718886726927,53.0111,139.72,139.53,6.6097]
[1718886726928,7.495699,139.67,139.53,6.6097]
[1718886727099,7.495699,139.67,139.54,20.51]
[1718886727605,7.495699,139.67,139.55,0.17]
[1718886727795,17.895,139.71,139.55,0.17]
[1718886727796,7.1592,139.68,139.55,0.17]
[1718886728298,7.1586,139.7,139.55,0.17]
[1718886728616,7.49282256,139.71,139.59,0.17]
[1718886728821,17.8909,139.74,139.59,20.51]
[1718886729002,17.8909,139.74,139.6,0.17]
[1718886729199,7.49109867,139.75,139.61,0.17]
[1718886729509,20.0,139.74,139.61,0.51]
[1718886729721,7.49109867,139.75,139.62,0.17]
[1718886729921,7.49109867,139.75,139.63,0.17]
[1718886730216,7.1588,139.69,139.63,0.51]
[1718886730413,7.1578,139.71,139.63,0.51]
[1718886730595,7.1586,139.7,139.63,0.51]
[1718886730916,7.49109867,139.75,139.58,6.6328]
[1718886731097,7.1606,139.66,139.58,6.6328]
[1718886731416,0.17,139.74,139.58,6.6328]
[1718886731617,7.1595,139.68,139.58,6.6328]
[1718886731811,7.1598,139.67,139.58,6.6328]
[1718886732008,7.1592,139.68,139.58,6.6328]
[1718886732310,7.49109867,139.75,139.58,6.6328]
[1718886732509,7.1576,139.72,139.59,20.17]
[1718886732726,7.49109867,139.75,139.59,20.17]
[1718886732894,7.1566,139.73,139.6,15.385]
[1718886733098,7.49109867,139.75,139.62,0.17]
[1718886733313,7.49109867,139.75,139.61,20.0]
[1718886733503,17.8932,139.72,139.61,20.0]
[1718886733713,20.0,139.71,139.61,20.0]
[1718886733918,7.49109867,139.75,139.61,20.0]
[1718886734220,7.1579,139.71,139.61,20.0]
[1718886734422,7.1572,139.72,139.61,20.0]
[1718886734715,17.8914,139.74,139.61,20.0]
[1718886734916,20.0,139.73,139.62,0.17]
[1718886735215,20.0,139.73,139.6,15.385]
[1718886735517,0.17,139.72,139.6,15.385]
[1718886735906,7.158,139.71,139.6,15.385]
[1718886736106,7.1572,139.72,139.61,20.0]
[1718886736304,7.1564,139.74,139.61,20.0]
[1718886736619,14.64669867,139.75,139.61,20.0]
[1718886736914,7.49109867,139.75,139.62,6.5325]
[1718886737218,7.1571,139.73,139.64,0.17]
[1718886737519,17.8872,139.77,139.64,0.17]
[1718886737520,7.1547,139.77,139.68,0.17]
[1718886737697,17.8822,139.81,139.68,20.68]
[1718886737698,7.1545,139.78,139.68,20.68]
[1718886737898,17.8822,139.81,139.68,20.68]
[1718886738210,7.1531,139.8,139.68,20.68]
[1718886738418,20.0,139.79,139.68,20.68]
[1718886738922,7.1547,139.77,139.68,20.68]
[1718886739219,35.7575,139.84,139.67,6.5325]
[1718886739404,17.8869,139.77,139.67,6.5325]
[1718886739611,35.7575,139.84,139.67,6.5325]
[1718886739612,7.1575,139.72,139.67,6.5325]
[1718886739816,0.17,139.83,139.67,6.5325]
[1718886740017,17.8844,139.79,139.67,6.5325]
[1718886740223,35.7575,139.84,139.67,6.5325]
[1718886740396,35.7657,139.8,139.67,6.5325]
[1718886740601,7.1575,139.72,139.67,6.5325]
[1718886740796,17.8919,139.73,139.62,6.2728]
[1718886741016,20.0,139.71,139.62,6.2728]
[1718886741202,20.0,139.71,139.59,16.4707]
[1718886741203,0.17,139.7,139.59,16.4707]
[1718886741402,45.68,139.7,139.59,16.4707]
[1718886741616,17.9137,139.56,139.44,6.5374]
[1718886741920,7.166,139.55,139.44,6.5374]
[1718886742230,17.914,139.56,139.44,6.5374]
[1718886742415,7.1669,139.53,139.44,6.5374]
[1718886742613,7.1691,139.49,139.44,6.5374]
[1718886742921,7.1683,139.51,139.44,6.5374]
[1718886743117,7.1691,139.49,139.44,6.5374]
[1718886743422,0.17,139.54,139.44,6.5374]
[1718886743723,7.1685,139.5,139.44,6.5374]
[1718886743906,20.0,139.49,139.44,6.5374]
[1718886744109,20.0,139.49,139.38,6.4274]
[1718886744303,18.2637,139.48,139.38,6.4274]
[1718886744525,20.0,139.47,139.38,6.4274]
[1718886744731,7.1719,139.44,139.38,6.4274]
[1718886745024,20.0,139.43,139.35,15.0423]
[1718886745227,20.0,139.43,139.32,6.4274]
[1718886745407,20.0,139.45,139.32,6.4274]
[1718886745603,7.1727,139.42,139.32,6.4274]
[1718886745802,20.0,139.41,139.32,6.4274]
[1718886746230,7.1736,139.4,139.32,6.4274]
[1718886746403,18.0953,139.47,139.32,6.4274]
[1718886746606,7.1683,139.51,139.32,6.4274]
[1718886746813,35.8247,139.57,139.36,30.34]
[1718886747005,7.48577923,139.55,139.32,8.98299557]
[1718886747220,7.1674,139.52,139.34,30.34]
[1718886747524,7.1674,139.52,139.38,30.34]
[1718886747716,7.1674,139.52,139.4,0.17]
[1718886747910,7.48577923,139.55,139.4,0.17]
[1718886748112,7.48577923,139.55,139.33,20.0]
[1718886748326,7.1724,139.43,139.33,20.0]
[1718886748827,0.17,139.46,139.33,20.0]
[1718886749015,7.1736,139.4,139.28,20.0]
[1718886749329,0.68,139.46,139.28,20.0]
[1718886749513,20.0,139.45,139.28,20.0]
[1718886749902,0.34,139.44,139.28,20.0]
[1718886750213,0.34,139.46,139.28,20.0]
[1718886750523,7.1714,139.45,139.33,0.17]
[1718886750725,7.1711,139.45,139.33,20.17]
[1718886750925,35.8283,139.56,139.33,20.17]
[1718886751126,37.9168,139.54,139.37,0.17]
[1718886751432,289.2283,139.56,139.37,0.17]
[1718886751433,35.8373,139.52,139.37,20.68]
[1718886751634,7.1706,139.46,139.38,0.17]
[1718886751805,7.1706,139.46,139.39,0.17]
[1718886752009,17.9206,139.51,139.39,0.17]
[1718886752314,17.9237,139.48,139.39,0.17]
[1718886752835,289.2283,139.56,139.39,0.17]
[1718886753030,14.65177923,139.55,139.41,0.17]
[1718886753329,268.6619,139.62,139.43,0.17]
[1718886753517,268.6619,139.62,139.42,6.5799]
[1718886753518,7.48371573,139.58,139.42,6.5799]
[1718886753723,17.9174,139.53,139.43,0.17]
[1718886753914,35.829,139.56,139.43,0.17]
[1718886753915,7.1678,139.52,139.45,7.1706]
[1718886754316,7.168,139.51,139.44,7.1714]
[1718886754615,7.1684,139.5,139.43,7.3418]
[1718886754926,7.1682,139.51,139.43,0.17]
[1718886755129,17.9163,139.54,139.42,6.5799]
[1718886755130,7.1686,139.5,139.42,6.5799]
[1718886755435,7.172,139.43,139.36,6.381]
[1718886755611,7.172,139.43,139.36,13.5563]
[1718886755812,0.17,139.48,139.36,6.381]
[1718886755813,17.9267,139.46,139.36,6.381]
[1718886756122,7.1736,139.4,139.36,6.381]
[1718886756633,7.1742,139.39,139.33,17.5001]
[1718886756936,0.34,139.45,139.33,10.323]
[1718886757113,0.34,139.44,139.33,10.323]
[1718886757311,0.17,139.43,139.33,10.323]
[1718886757506,7.1726,139.42,139.36,7.1753]
[1718886757921,7.1721,139.43,139.37,7.175]
[1718886758327,0.17,139.47,139.33,10.323]
[1718886758524,0.17,139.47,139.37,7.1749]
[1718886758525,7.1723,139.43,139.37,7.1749]
[1718886758723,17.9255,139.47,139.33,10.323]
[1718886758915,7.1711,139.45,139.39,7.1737]
[1718886759233,20.0,139.46,139.33,10.323]
[1718886759528,7.1712,139.45,139.39,7.1736]
[1718886759714,20.0,139.48,139.33,10.323]
[1718886759916,7.1705,139.46,139.4,7.1734]
[1718886760127,20.0,139.45,139.41,7.173]
[1718886760432,20.0,139.45,139.4,7.1734]
[1718886760929,253.4,139.5,139.34,63.13]
[1718886761129,253.4,139.5,139.35,0.68]
[1718886761310,7.1691,139.49,139.43,7.1719]
[1718886761514,7.1695,139.48,139.43,7.1715]
[1718886761726,7.1694,139.49,139.43,7.1715]
[1718886761929,17.9177,139.53,139.44,7.1714]
[1718886762133,17.9202,139.51,139.42,13.5206]
[1718886762314,35.8338,139.54,139.42,6.3482]
[1718886762517,7.17,139.47,139.38,0.17]
[1718886762713,35.8338,139.54,139.38,0.17]
[1718886762714,7.1695,139.48,139.38,20.68]
[1718886762915,7.1711,139.45,139.38,20.51]
[1718886763214,7.1711,139.45,139.39,7.1739]
[1718886763624,0.17,139.46,139.37,6.5959]
[1718886763822,7.1714,139.45,139.37,6.5959]
[1718886764143,7.1714,139.45,139.39,7.1739]
[1718886764847,7.1716,139.44,139.38,7.1744]
[1718886765154,7.1716,139.44,139.37,6.5959]
[1718886765155,7.1726,139.42,139.37,6.5959]
[1718886765718,7.1726,139.42,139.37,13.7709]
[1718886766139,7.1716,139.44,139.38,7.1743]
[1718886766322,7.1716,139.44,139.39,7.174]
[1718886766522,0.17,139.46,139.37,6.5959]
[1718886766523,7.172,139.43,139.37,6.5959]
[1718886766729,7.1716,139.44,139.38,7.1745]
[1718886766923,0.17,139.46,139.4,7.1734]
[1718886767130,7.5107,139.46,139.4,7.1734]
[1718886767322,20.0,139.45,139.37,6.5959]
[1718886767538,7.1725,139.42,139.37,6.5959]
[1718886767745,17.9304,139.43,139.32,6.655]
[1718886767950,20.0,139.42,139.32,6.655]
[1718886768129,27.1726,139.42,139.36,7.1751]
[1718886768325,20.0,139.42,139.32,6.655]
[1718886768530,0.17,139.44,139.32,6.655]
[1718886768726,7.1737,139.4,139.35,7.1757]
[1718886769431,7.1731,139.41,139.35,7.1757]
[1718886769626,7.1727,139.42,139.36,7.1755]
[1718886770028,7.1743,139.39,139.32,6.655]
[1718886770653,17.9313,139.43,139.32,6.655]
[1718886770833,7.1742,139.39,139.34,7.1763]
[1718886773859,17.9392,139.36,139.28,7.1794]
[1718886774147,65.68,139.38,139.23,10.323]
[1718886774347,65.68,139.38,139.24,20.17]
[1718886774554,65.68,139.38,139.27,7.1801]
[1718886774555,7.1775,139.33,139.27,7.1801]
[1718886774739,73.16409382,139.38,139.24,20.0]
[1718886774930,73.16409382,139.38,139.23,10.323]
[1718886775127,7.1798,139.28,139.23,10.323]
[1718886775331,7.1797,139.29,139.23,17.5049]
[1718886775528,7.178,139.32,139.26,7.1804]
[1718886775764,0.17,139.34,139.23,10.323]
[1718886775934,7.1777,139.33,139.23,10.323]
[1718886776141,27.1777,139.32,139.26,7.1806]
[1718886776957,7.1776,139.33,139.27,7.1801]
[1718886777160,17.9408,139.35,139.24,0.17]
[1718886777379,65.68,139.34,139.24,0.17]
[1718886777655,65.68,139.34,139.23,7.1821]
[1718886778032,7.1801,139.28,139.22,7.1827]
[1718886778679,0.17,139.31,139.23,7.1823]
[1718886778680,7.1794,139.29,139.23,7.1823]
[1718886779764,7.1789,139.3,139.24,7.1817]
[1718886780140,7.1793,139.29,139.19,10.323]
[1718886780343,0.51,139.31,139.19,10.323]
[1718886780344,20.0,139.28,139.21,13.223]
[1718886780544,45.0,139.34,139.26,7.1807]
[1718886780859,7.1782,139.31,139.26,7.1807]
[1718886781375,253.4,139.39,139.31,7.1778]
[1718886781546,7.1753,139.37,139.31,7.1778]
[1718886781858,16.0667,139.41,139.24,0.17]
[1718886782059,17.9365,139.39,139.24,20.68]
[1718886782453,7.1744,139.39,139.33,7.1768]
[1718886782655,33.9994,139.41,139.24,63.81]
[1718886782868,7.1748,139.38,139.33,7.1771]
[1718886783067,7.1736,139.4,139.29,0.17]
[1718886783366,7.1721,139.43,139.37,7.175]
[1718886783570,7.1715,139.44,139.38,7.1744]
[1718886783741,20.0,139.46,139.31,73.64]
[1718886783947,7.1716,139.44,139.38,7.1746]
[1718886784887,289.2446,139.5,139.33,0.17]
[1718886785056,35.8531,139.46,139.33,0.17]
[1718886785252,35.8531,139.46,139.32,0.51]
[1718886785557,35.8531,139.46,139.3,13.3694]
[1718886785558,7.1759,139.36,139.3,13.3694]
[1718886785760,17.9312,139.43,139.3,6.191]
[1718886786147,0.17,139.4,139.3,6.191]
[1718886786355,45.68,139.4,139.3,6.191]
[1718886786548,20.0,139.39,139.3,6.191]
[1718886786857,18.1022,139.42,139.3,6.191]
[1718886787049,7.1767,139.34,139.3,6.191]
[1718886787261,0.17,139.38,139.28,10.323]
[1718886787262,7.1777,139.32,139.28,10.323]
[1718886787481,17.9392,139.36,139.25,6.6377]
[1718886787655,20.0,139.35,139.25,6.6377]
[1718886787855,17.9432,139.33,139.25,6.6377]
[1718886788056,17.9432,139.33,139.22,7.1824]
[1718886788057,7.1798,139.28,139.22,7.1824]
[1718886789876,27.1807,139.27,139.21,7.1832]
[1718886790053,27.1807,139.27,139.2,6.6377]
[1718886790054,0.17,139.27,139.2,6.6377]
[1718886790364,20.0,139.26,139.18,10.323]
[1718886790571,0.17,139.25,139.16,6.0131]
[1718886791070,20.0,139.26,139.19,7.1843]
[1718886791269,0.34,139.28,139.16,6.0131]
[1718886791575,0.34,139.28,139.18,7.1849]
[1718886791576,7.182,139.24,139.18,7.1849]
[1718886791776,7.1824,139.23,139.17,7.1853]
[1718886791963,7.182,139.24,139.18,7.1848]
[1718886792582,7.1814,139.25,139.19,7.1843]
[1718886792874,20.0,139.24,139.19,7.1843]
[1718886793277,20.0,139.24,139.16,6.0131]
[1718886793460,7.1823,139.23,139.17,7.1853]
[1718886793861,20.34,139.27,139.16,6.0131]
[1718886794067,0.34,139.26,139.16,6.0131]
[1718886794267,0.17,139.25,139.16,6.0131]
[1718886794680,20.0,139.26,139.17,0.17]
[1718886794979,7.1803,139.27,139.21,7.1829]
[1718886795178,20.0,139.29,139.17,20.0]
[1718886795481,17.9489,139.29,139.18,0.34]
[1718886795676,17.9508,139.27,139.17,7.3553]
[1718886795892,20.0,139.26,139.16,6.0131]
[1718886796060,7.1829,139.22,139.16,6.0131]
[1718886796261,20.0,139.26,139.22,7.1823]
[1718886796582,20.0,139.26,139.16,6.0131]
[1718886796787,7.1809,139.26,139.2,7.1834]
[1718886796961,7.1809,139.26,139.16,6.0131]
[1718886796962,17.9488,139.29,139.21,7.183]
[1718886797160,7.1821,139.24,139.19,7.1844]
[1718886797362,7.1812,139.26,139.2,7.1835]
[1718886797574,20.0,139.25,139.2,7.1835]
[1718886797785,7.1819,139.24,139.18,7.1848]
[1718886798182,7.1818,139.24,139.18,7.1847]
[1718886798484,20.0,139.23,139.17,7.1853]
[1718886798678,20.0,139.25,139.13,20.646]
[1718886798679,7.1842,139.2,139.14,7.1868]
[1718886798894,7.186,139.16,139.08,6.2439]
[1718886799088,20.0,139.19,139.02,30.34]
[1718886799400,0.17,139.21,139.06,7.191]
[1718886799401,7.1882,139.12,139.06,7.191]
[1718886799562,7.1881,139.12,139.03,6.115]
[1718886799757,20.0,139.11,139.07,7.1902]
[1718886800174,20.0,139.11,139.03,6.115]
[1718886800175,20.0,139.11,139.08,7.19]
[1718886800360,7.1865,139.15,139.1,7.189]
[1718886800565,18.1335,139.18,139.03,6.115]
[1718886800566,20.0,139.14,139.03,6.115]
[1718886800773,0.17,139.18,139.04,0.68]
[1718886801064,0.51,139.18,139.04,0.68]
[1718886801274,0.34,139.18,139.1,7.1885]
[1718886801474,0.34,139.18,139.04,0.17]
[1718886801662,17.9698,139.13,139.04,27.1918]
[1718886801878,7.1889,139.11,139.05,7.1912]
[1718886802387,7.1887,139.11,139.05,7.1912]
[1718886802564,0.17,139.14,139.04,20.0]
[1718886802889,0.17,139.14,139.03,6.115]
[1718886802890,17.9701,139.12,139.03,6.115]
[1718886803187,20.0,139.11,139.03,13.3071]
[1718886803487,7.1905,139.08,138.99,17.9662]
[1718886803693,7.1897,139.09,139.03,7.1926]
[1718886803876,27.1901,139.08,139.02,7.193]
[1718886804195,20.0,139.08,139.0,7.1938]
[1718886804373,7.1913,139.06,139.0,7.1938]
[1718886804740,20.0,139.08,138.93,6.4303]
[1718886804989,7.1916,139.05,139.0,7.1941]
[1718886805189,27.1922,139.04,138.94,40.0]
[1718886805372,20.0,139.04,138.94,20.0]
[1718886805582,20.0,139.04,139.0,7.1941]
[1718886806166,20.0,139.04,138.99,7.1947]
[1718886806473,20.0,139.04,139.0,7.1942]
[1718886806678,20.0,139.04,138.99,7.1945]
[1718886806988,20.0,139.04,139.0,7.1942]
[1718886807208,17.9726,139.11,138.95,0.17]
[1718886807499,0.17,139.08,138.97,0.17]
[1718886807783,18.1452,139.08,138.95,0.17]
[1718886807986,7.1923,139.04,138.98,7.1948]
[1718886808164,7.1923,139.04,138.94,20.0]
[1718886808165,17.9794,139.05,138.94,20.0]
[1718886808364,7.1934,139.02,138.96,7.1961]
[1718886808587,27.1937,139.01,138.95,7.1967]
[1718886808785,7.1939,139.01,138.95,7.1964]
[1718886808987,20.0,139.0,138.95,7.1964]
[1718886809186,20.0,139.0,138.93,6.4303]
[1718886809387,20.0,139.0,138.91,10.323]
[1718886809594,20.0,139.0,138.95,7.1968]
[1718886809994,20.0,139.0,138.89,20.0]
[1718886810203,0.17,139.01,138.89,20.0]
[1718886810204,18.3248,139.01,138.89,20.0]
[1718886810404,27.1944,139.0,138.94,7.1971]
[1718886810604,7.1948,138.99,138.88,6.1137]
[1718886810802,20.0,138.98,138.88,6.1137]
[1718886810989,7.1962,138.97,138.88,6.1137]
[1718886811305,20.0,138.98,138.88,6.1137]
[1718886811503,7.1966,138.96,138.9,7.1989]
[1718886811693,20.0,138.98,138.85,10.323]
[1718886811694,0.17,138.97,138.85,10.323]
[1718886811899,20.0,138.98,138.85,10.323]
[1718886812100,0.51,138.97,138.85,10.323]
[1718886812301,7.1973,138.94,138.88,7.2003]
[1718886812608,7.1969,138.95,138.89,7.1998]
[1718886812804,20.0,138.94,138.89,7.1998]
[1718886813006,20.0,138.94,138.85,7.1969]
[1718886813206,7.1989,138.91,138.85,14.3985]
[1718886813416,7.1985,138.92,138.83,6.1469]
[1718886813590,20.0,138.91,138.83,6.1469]
[1718886814088,27.1989,138.91,138.85,7.2018]
[1718886814289,27.1989,138.91,138.85,7.2019]
[1718886814490,7.1996,138.9,138.83,7.2025]
[1718886814698,27.2,138.89,138.83,7.2025]
[1718886814910,27.2005,138.88,138.82,7.2035]
[1718886815126,6.5234,138.89,138.78,7.2051]
[1718886815293,7.2022,138.85,138.78,7.2051]
[1718886815498,7.2022,138.85,138.79,7.205]
[1718886815710,7.2015,138.86,138.8,7.2045]
[1718886815908,20.0,138.85,138.75,18.0016]
[1718886816230,20.0,138.85,138.73,30.34]
[1718886816396,7.2037,138.82,138.76,7.2065]
[1718886816598,0.17,138.86,138.71,6.1645]
[1718886816916,20.51,138.86,138.71,6.1645]
[1718886817217,0.51,138.86,138.71,6.1645]
[1718886817425,7.2026,138.84,138.71,6.1645]
[1718886817627,20.0,138.83,138.77,7.206]
[1718886817806,20.0,138.83,138.71,6.1645]
[1718886818010,6.6005,138.94,138.71,6.1645]
[1718886818209,27.1982,138.93,138.87,7.2005]
[1718886818406,7.1985,138.92,138.86,7.2014]
[1718886818734,27.1989,138.91,138.85,7.2018]
[1718886818909,42.5882,138.94,138.77,30.34]
[1718886819111,7.204,138.82,138.76,7.2066]
[1718886819301,46.6624,138.93,138.67,36.5687]
[1718886819302,18.001,138.89,138.79,7.2047]
[1718886819506,7.2033,138.83,138.77,7.2059]
[1718886819708,7.2039,138.82,138.75,7.2068]
[1718886820110,20.0,138.81,138.73,18.0194]
[1718886820318,7.2041,138.81,138.75,7.207]
[1718886820505,7.2031,138.83,138.77,7.206]
[1718886820705,20.0,138.84,138.71,30.34]
[1718886820911,20.0,138.84,138.83,7.203]
[1718886821136,16.3224,138.93,138.82,7.2033]
[1718886821137,7.2005,138.88,138.82,7.2033]
[1718886821427,34.3181,138.93,138.71,43.13]
[1718886821428,20.0,138.87,138.71,30.34]
[1718886821729,20.0,138.89,138.73,0.17]
[1718886821900,20.0,138.92,138.83,7.2029]
[1718886822209,7.2001,138.89,138.83,7.203]
[1718886822407,20.0,138.88,138.83,7.3728]
[1718886822710,34.3175,138.93,138.83,0.17]
[1718886823016,7.1999,138.89,138.84,7.2021]
[1718886823218,7.2009,138.87,138.82,0.17]
[1718886823528,7.2022,138.85,138.8,0.17]
[1718886823730,7.2005,138.88,138.82,7.2031]